bitfinex/quotes_BTCUSD_20250719
["timestamp","ask_amount","ask_price","bid_price","bid_amount"]
[1752895192369,0.0253606,118290.0,118280.0,0.68258008]
[1752895192591,0.03381432,118290.0,118280.0,0.48120751]
[1752895192813,0.19443694,118290.0,118280.0,0.48120751]
[1752895193026,0.18598336,118290.0,118280.0,0.48120751]
[1752895195147,0.18598336,118290.0,118280.0,0.28828895]
[1752895195367,0.18598336,118290.0,118280.0,0.48120751]
[1752895195584,0.18598336,118290.0,118280.0,0.48966159]
[1752895196006,0.01690737,118290.0,118280.0,0.4981156]
[1752895196231,0.01690709,118290.0,118280.0,0.4981156]
[1752895196897,0.02536024,118290.0,118280.0,0.4981156]
[1752895199007,0.03381389,118290.0,118280.0,0.4981156]
[1752895199297,0.02536024,118290.0,118280.0,0.4981156]
[1752895199728,0.03381389,118290.0,118280.0,0.4981156]
[1752895199948,0.1859675,118300.0,118290.0,0.22603687]
[1752895200170,0.1859675,118300.0,118290.0,0.23129687]
[1752895200392,0.1859675,118300.0,118290.0,0.62558743]
[1752895200615,0.02535888,118300.0,118290.0,0.62558743]
[1752895200831,0.02535888,118300.0,118290.0,0.43266887]
[1752895201049,0.0253581,118300.0,118290.0,0.63391204]
[1752895201732,0.0253581,118300.0,118290.0,0.2482036]
[1752895201940,0.03381104,118300.0,118290.0,0.63391204]
[1752895202918,0.00845244,118300.0,118290.0,0.61700438]
[1752895203330,0.00945244,118300.0,118290.0,0.61700438]
[1752895203978,0.00845244,118300.0,118290.0,0.61700438]
[1752895204154,0.02535767,118300.0,118290.0,0.61700438]
[1752895204362,0.03381046,118300.0,118290.0,0.61700438]
[1752895204569,0.01690495,118300.0,118290.0,0.61700438]
[1752895204774,0.0253576,118300.0,118290.0,0.61700438]
[1752895205598,0.03381039,118300.0,118290.0,0.61700438]
[1752895205782,0.0263576,118300.0,118290.0,0.61700438]
[1752895205989,0.01790495,118300.0,118290.0,0.61700438]
[1752895206423,0.03481032,118300.0,118290.0,0.61700438]
[1752895207590,0.04326326,118300.0,118290.0,0.61700438]
[1752895208495,0.04226326,118300.0,118290.0,0.61700438]
[1752895208814,0.03381032,118300.0,118290.0,0.61700438]
[1752895209021,0.04226319,118300.0,118290.0,0.61700438]
[1752895209339,0.03381032,118300.0,118290.0,0.61700438]
[1752895209677,0.04226319,118300.0,118290.0,0.61700438]
[1752895213429,0.04226369,118300.0,118290.0,0.61700438]
[1752895215126,0.02535788,118300.0,118290.0,0.61700438]
[1752895216058,0.03381082,118300.0,118290.0,0.68272438]
[1752895217143,0.03381082,118300.0,118290.0,0.29701594]
[1752895217568,0.03381082,118300.0,118290.0,0.68272438]
[1752895217776,0.03381075,118300.0,118290.0,0.68272438]
[1752895218931,0.01690509,118300.0,118290.0,0.68272438]
[1752895219902,0.03383287,118310.0,118300.0,0.22642008]
[1752895220134,0.53387828,118320.0,118310.0,0.21100365]
[1752895220358,0.06770829,118320.0,118310.0,0.48699801]
[1752895220584,0.06770829,118320.0,118310.0,0.49023801]
[1752895220787,0.21136242,118320.0,118310.0,0.481786]
[1752895221003,0.20291141,118320.0,118310.0,0.65924036]
[1752895221244,0.19446019,118320.0,118310.0,0.65924036]
[1752895221699,0.18700875,118320.0,118310.0,0.65924036]
[1752895221915,0.1785571,118320.0,118310.0,0.08758]
[1752895222137,0.1785571,118320.0,118310.0,0.28043422]
[1752895222362,0.1785571,118320.0,118310.0,0.28888659]
[1752895222923,0.18700875,118320.0,118310.0,0.457934]
[1752895223143,0.19546019,118320.0,118310.0,0.67614453]
[1752895224018,0.19546019,118320.0,118310.0,0.48329031]
[1752895224234,0.19546019,118320.0,118310.0,0.48329038]
[1752895224587,0.18700875,118320.0,118310.0,0.46638629]
[1752895224802,0.18700875,118320.0,118310.0,0.27353207]
[1752895225013,0.18700875,118320.0,118310.0,0.46638629]
[1752895225934,0.18700875,118320.0,118310.0,0.45823851]
[1752895226155,0.18700875,118320.0,118310.0,0.46669052]
[1752895226798,0.02642706,118320.0,118310.0,0.67514431]
[1752895227007,0.19546019,118320.0,118310.0,0.66669237]
[1752895227345,0.18708551,118320.0,118310.0,0.66669237]
[1752895227692,0.18808551,118320.0,118310.0,0.66669237]
[1752895228360,0.01060051,118320.0,118310.0,0.69044424]
[1752895228553,0.02750289,118320.0,118310.0,0.69044424]
[1752895228764,0.0359544,118320.0,118310.0,0.69044424]
[1752895228902,0.02750289,118320.0,118310.0,0.69044424]
[1752895229287,0.01905152,118320.0,118310.0,0.69044424]
[1752895229484,0.02650296,118320.0,118310.0,0.69044424]
[1752895229720,0.01705152,118320.0,118310.0,0.69044424]
[1752895229841,0.02550289,118320.0,118310.0,0.69044424]
[1752895230039,0.03385843,118320.0,118310.0,0.69044424]
[1752895230389,0.04230994,118320.0,118310.0,0.69044424]
[1752895230847,0.05076152,118320.0,118310.0,0.69044424]
[1752895232227,0.04230994,118320.0,118310.0,0.69044424]
[1752895232638,0.05076152,118320.0,118310.0,0.69044424]
[1752895232854,0.05076152,118320.0,118310.0,0.3047358]
[1752895233086,0.05076152,118320.0,118310.0,0.69044424]
[1752895233313,0.01695584,118320.0,118310.0,0.69044424]
[1752895233523,0.04230979,118320.0,118310.0,0.69044424]
[1752895234089,0.03385835,118320.0,118310.0,0.69044424]
[1752895234223,0.04230972,118320.0,118310.0,0.69044424]
[1752895234716,0.05076123,118320.0,118310.0,0.69044424]
[1752895236981,0.04230972,118320.0,118310.0,0.69044424]
[1752895237515,0.02540706,118320.0,118310.0,0.69044424]
[1752895237717,0.02540699,118320.0,118310.0,0.69044424]
[1752895237920,0.03385836,118320.0,118310.0,0.69044424]
[1752895238122,0.02540699,118320.0,118310.0,0.69044424]
[1752895238434,0.03385836,118320.0,118310.0,0.69044424]
[1752895238617,0.02540699,118320.0,118310.0,0.69044424]
[1752895238819,0.01695584,118320.0,118310.0,0.69044424]
[1752895239026,0.03385814,118320.0,118310.0,0.69044424]
[1752895239977,0.00014929,118320.0,118310.0,0.77595452]
[1752895240418,0.00014929,118320.0,118310.0,1.30880874]
[1752895242538,0.00014929,118320.0,118310.0,1.30980874]
[1752895243318,0.00014929,118320.0,118310.0,1.31080874]
[1752895246002,0.00014929,118320.0,118310.0,1.11795452]
[1752895247300,0.00014929,118320.0,118310.0,0.73224608]
[1752895247526,0.00860037,118320.0,118310.0,1.11795452]
[1752895247749,0.00014929,118320.0,118310.0,1.11795452]
[1752895250515,0.00860037,118320.0,118310.0,1.11795452]
[1752895251503,0.01705152,118320.0,118310.0,1.31080874]
[1752895251721,0.00860037,118320.0,118310.0,1.31080874]
[1752895251970,0.0086003,118320.0,118310.0,1.31080874]
[1752895252358,0.01705145,118320.0,118310.0,1.31080874]
[1752895252816,0.0086003,118320.0,118310.0,1.31080874]
[1752895253046,0.01705138,118320.0,118310.0,1.31080874]
[1752895253336,0.03395404,118320.0,118310.0,1.31080874]
[1752895253539,0.0255026,118320.0,118310.0,1.31080874]
[1752895253673,0.03395397,118320.0,118310.0,1.31080874]
[1752895254093,0.1881653,118320.0,118310.0,0.002]
[1752895254306,0.24294272,118320.0,118310.0,0.19485422]
[1752895254519,0.2226253,118320.0,118310.0,0.26053422]
[1752895257075,0.2226253,118320.0,118310.0,0.26052082]
[1752895257915,0.2226253,118320.0,118310.0,0.19484082]
[1752895258095,0.2226253,118320.0,118310.0,0.26052082]
[1752895259762,0.2226253,118320.0,118310.0,0.06768]
[1752895260148,0.2226253,118320.0,118310.0,0.26052082]
[1752895260379,0.26180985,118320.0,118310.0,0.26052082]
[1752895260979,0.2226253,118320.0,118310.0,0.26052082]
[1752895261349,0.2226253,118320.0,118310.0,0.06768]
[1752895261592,0.2226253,118320.0,118310.0,0.26052082]
[1752895262684,0.2226253,118320.0,118310.0,0.002]
[1752895262901,0.2226253,118320.0,118310.0,0.06764]
[1752895263551,0.23289702,118320.0,118310.0,0.06764]
[1752895265474,0.2226253,118320.0,118310.0,0.06764]
[1752895268020,0.2226253,118320.0,118310.0,0.26048082]
[1752895269087,0.2226253,118320.0,118310.0,0.06764]
[1752895269298,0.2226253,118320.0,118310.0,0.26048082]
[1752895269719,0.2226253,118320.0,118310.0,0.06764]
[1752895269994,0.2226253,118320.0,118310.0,0.26048082]
[1752895271710,0.2226253,118320.0,118310.0,0.06764]
[1752895271909,0.2226253,118320.0,118310.0,0.26048082]
[1752895273253,0.2226253,118320.0,118310.0,0.06764]
[1752895273457,0.2226253,118320.0,118310.0,0.26048082]
[1752895274068,0.2226253,118320.0,118310.0,0.06764]
[1752895274279,0.2226253,118320.0,118310.0,0.26048082]
[1752895274848,0.2226253,118320.0,118310.0,0.06764]
[1752895275089,0.28109394,118320.0,118310.0,0.06764]
[1752895276599,0.2226253,118320.0,118310.0,0.06764]
[1752895276812,0.2226253,118320.0,118310.0,0.26048082]
[1752895277032,0.2226253,118320.0,118310.0,0.26050782]
[1752895278375,0.2226253,118320.0,118310.0,0.06764]
[1752895278564,0.2226253,118320.0,118310.0,0.26050782]
[1752895279007,0.2226253,118320.0,118310.0,0.26049994]
[1752895279187,0.2226253,118320.0,118310.0,0.06764]
[1752895279522,0.26180985,118320.0,118310.0,0.06764]
[1752895279736,0.26180985,118320.0,118310.0,0.26049994]
[1752895281099,0.2226253,118320.0,118310.0,0.26049994]
[1752895281363,0.2226253,118320.0,118310.0,0.06764]
[1752895281578,0.2196653,118320.0,118310.0,0.26049994]
[1752895282729,0.1860853,118320.0,118310.0,0.26555994]
[1752895282942,0.1860853,118320.0,118310.0,0.29745994]
[1752895286112,0.1860853,118320.0,118310.0,0.1046]
[1752895286353,0.1860853,118320.0,118310.0,0.29745994]
[1752895287690,0.1860853,118320.0,118310.0,0.28185994]
[1752895288435,0.1860853,118320.0,118310.0,0.089]
[1752895288649,0.1860853,118320.0,118310.0,0.28185994]
[1752895290158,0.2114633,118320.0,118310.0,0.28185994]
[1752895290926,0.2136133,118320.0,118310.0,0.26555994]
[1752895291646,0.2136133,118320.0,118310.0,0.26049994]
[1752895291876,0.25137052,118320.0,118310.0,0.26049994]
[1752895293014,0.26747052,118320.0,118310.0,0.26049994]
[1752895293411,0.26747052,118320.0,118310.0,0.06764]
[1752895293570,0.27058052,118320.0,118310.0,0.06764]
[1752895294789,0.25137052,118320.0,118310.0,0.06764]
[1752895294993,0.25137052,118320.0,118310.0,0.26049994]
[1752895295201,0.23537052,118320.0,118310.0,0.26049994]
[1752895295413,0.2136133,118320.0,118310.0,0.26049994]
[1752895296129,0.2136133,118320.0,118310.0,4.35439994]
[1752895296330,0.2136133,118320.0,118310.0,4.35943994]
[1752895299596,0.2114633,118320.0,118310.0,4.37603994]
[1752895300234,0.20301193,118320.0,118310.0,4.37603994]
[1752895300539,0.20301193,118320.0,118310.0,4.39253994]
[1752895300993,0.20301193,118320.0,118310.0,4.19968]
[1752895301214,0.20301193,118320.0,118310.0,4.39253994]
[1752895301606,0.17763393,118320.0,118310.0,4.40099231]
[1752895302162,0.17763393,118320.0,118310.0,4.57849201]
[1752895302371,0.17763393,118320.0,118310.0,4.58694423]
[1752895302978,0.17763393,118320.0,118310.0,4.58691688]
[1752895303406,0.00014929,118320.0,118310.0,4.8821637]
[1752895303621,0.0086003,118320.0,118310.0,4.8821637]
[1752895304700,0.01705145,118320.0,118310.0,4.8821637]
[1752895305136,0.01705145,118320.0,118310.0,4.68928632]
[1752895305974,0.02550267,118320.0,118310.0,4.68928632]
[1752895306182,0.01705145,118320.0,118310.0,4.68928632]
[1752895307114,0.03395404,118320.0,118310.0,4.68928632]
[1752895308770,0.02550267,118320.0,118310.0,4.68928632]
[1752895308984,0.03395404,118320.0,118310.0,4.68928632]
[1752895309419,0.02550267,118320.0,118310.0,4.68928632]
[1752895310311,0.03395411,118320.0,118310.0,4.68928632]
[1752895310435,0.03395404,118320.0,118310.0,4.68928632]
[1752895311337,0.21143868,118320.0,118310.0,4.68083445]
[1752895311543,0.21143868,118320.0,118310.0,4.16654]
[1752895311544,0.1860853,118320.0,118310.0,4.16654]
[1752895311754,0.1882353,118320.0,118310.0,4.36778017]
[1752895311974,0.1882353,118320.0,118310.0,4.16654]
[1752895312189,0.1882353,118320.0,118310.0,4.3593278]
[1752895312974,0.1882353,118320.0,118310.0,4.36778017]
[1752895313188,0.1882353,118320.0,118310.0,4.16654]
[1752895313368,0.1882353,118320.0,118310.0,4.34403978]
[1752895313594,0.1882353,118320.0,118310.0,4.54527987]
[1752895314192,0.1860853,118320.0,118310.0,4.55373209]
[1752895314424,0.1860853,118320.0,118310.0,4.57013209]
[1752895314657,0.1860853,118320.0,118310.0,4.57858424]
[1752895315311,0.1860853,118320.0,118310.0,4.58703632]
[1752895316374,0.1860853,118320.0,118310.0,4.57013209]
[1752895316678,0.17763393,118320.0,118310.0,4.57013209]
[1752895317388,0.17763393,118320.0,118310.0,4.60303625]
[1752895319452,0.17763393,118320.0,118310.0,4.59458424]
[1752895319877,0.17763393,118320.0,118310.0,4.60303632]
[1752895320230,0.17763393,118320.0,118310.0,4.60303596]
[1752895322043,0.01705166,118320.0,118310.0,4.60303526]
[1752895322250,0.0255031,118320.0,118310.0,4.60303526]
[1752895322488,0.00860037,118320.0,118310.0,4.60303526]
[1752895322690,0.0339544,118320.0,118310.0,4.60303526]
[1752895324993,0.04240605,118320.0,118310.0,4.59458339]
[1752895325137,0.2029881,118320.0,118310.0,4.59458339]
[1752895327880,0.00860044,118320.0,118310.0,4.60303526]
[1752895328092,0.01705173,118320.0,118310.0,4.60303526]
[1752895328579,0.00860044,118320.0,118310.0,4.60303526]
[1752895328736,0.00860044,118320.0,118310.0,4.79582306]
[1752895329067,0.00860037,118320.0,118310.0,4.79582306]
[1752895329633,0.01705152,118320.0,118310.0,4.79582306]
[1752895329839,0.02550281,118320.0,118310.0,4.79582306]
[1752895330037,0.01705152,118320.0,118310.0,4.79582306]
[1752895330863,0.02550274,118320.0,118310.0,4.79582306]
[1752895331157,0.18824522,118320.0,118310.0,4.0959]
[1752895331378,0.21974522,118320.0,118310.0,4.16146]
[1752895331585,0.25733964,118320.0,118310.0,4.16146]
[1752895331750,0.25733964,118320.0,118310.0,4.3542478]
[1752895332167,0.25733964,118320.0,118310.0,4.16146]
[1752895332401,0.25733964,118320.0,118310.0,4.3542478]
[1752895332961,0.25733964,118320.0,118310.0,4.2886878]
[1752895333155,0.25733964,118320.0,118310.0,4.16146]
[1752895333387,0.21974522,118320.0,118310.0,4.3542478]
[1752895337022,0.21974522,118320.0,118310.0,4.16146]
[1752895337229,0.21974522,118320.0,118310.0,4.3542478]
[1752895338021,0.21974522,118320.0,118310.0,4.16146]
[1752895338518,0.21974522,118320.0,118310.0,4.3542478]
[1752895340374,0.20434522,118320.0,118310.0,4.3542478]
[1752895341840,0.20434522,118320.0,118310.0,4.3593678]
[1752895345631,0.18824522,118320.0,118310.0,4.3593678]
[1752895349070,0.23003744,118320.0,118310.0,4.3593678]
[1752895350418,0.22094522,118320.0,118310.0,4.3542478]
[1752895350623,0.22388522,118320.0,118310.0,4.16146]
[1752895350994,0.22388522,118320.0,118310.0,4.35433599]
[1752895351234,0.24926422,118320.0,118310.0,4.35433599]
[1752895353142,0.24926422,118320.0,118310.0,4.16146]
[1752895353495,0.31695554,118320.0,118310.0,4.16146]
[1752895354114,0.24926422,118320.0,118310.0,4.16146]
[1752895355439,0.24632422,118320.0,118310.0,4.16146]
[1752895356497,0.24926422,118320.0,118310.0,4.16146]
[1752895357684,0.24632422,118320.0,118310.0,4.16146]
[1752895358492,0.24926422,118320.0,118310.0,4.16146]
[1752895359006,0.31039954,118320.0,118310.0,4.16146]
[1752895359217,0.30745954,118320.0,118310.0,4.16146]
[1752895359661,0.30745954,118320.0,118310.0,4.0959]
[1752895359795,0.30745954,118320.0,118310.0,4.16142]
[1752895362064,0.24632422,118320.0,118310.0,4.16142]
[1752895364260,0.24632422,118320.0,118310.0,4.35429003]
[1752895364468,0.23012422,118320.0,118310.0,4.35429003]
[1752895364915,0.21362422,118320.0,118310.0,4.35629003]
[1752895365148,0.21362422,118320.0,118310.0,4.39060003]
[1752895365149,0.21146422,118320.0,118310.0,4.39060003]
[1752895365372,0.18608522,118320.0,118310.0,4.39060003]
[1752895365602,0.17763393,118320.0,118310.0,4.40750469]
[1752895365816,0.17763393,118320.0,118310.0,4.41595691]
[1752895366404,0.17763393,118320.0,118310.0,4.3990524]
[1752895366607,0.17763393,118320.0,118310.0,4.40750469]
[1752895366807,0.17763393,118320.0,118310.0,4.58500432]
[1752895368078,0.17763393,118320.0,118310.0,4.59345647]
[1752895368549,0.17763393,118320.0,118310.0,4.40058644]
[1752895368798,0.17763393,118320.0,118310.0,4.59345647]
[1752895369015,0.17763393,118320.0,118310.0,4.60190855]
[1752895369552,0.17763393,118320.0,118310.0,4.58500432]
[1752895369756,0.17763393,118320.0,118310.0,4.40058644]
[1752895369982,0.17763393,118320.0,118310.0,4.59345647]
[1752895370780,0.17763393,118320.0,118310.0,4.40058644]
[1752895371147,0.17763393,118320.0,118310.0,4.59345647]
[1752895371366,0.17763393,118320.0,118310.0,4.60190855]
[1752895371914,0.17763393,118320.0,118310.0,4.59345647]
[1752895372120,0.17763393,118320.0,118310.0,4.58500432]
[1752895372600,0.17763393,118320.0,118310.0,4.59345647]
[1752895373998,0.17763393,118320.0,118310.0,4.58500432]
[1752895375186,0.17763393,118320.0,118310.0,4.59345647]
[1752895376029,0.17763393,118320.0,118310.0,4.58500432]
[1752895376994,0.17763393,118320.0,118310.0,4.58495489]
[1752895378349,0.17763393,118320.0,118310.0,4.5934069]
[1752895378564,0.17763393,118320.0,118310.0,4.77777549]
[1752895378793,0.17763393,118320.0,118310.0,4.39213429]
[1752895379025,0.17763393,118320.0,118310.0,4.57650267]
[1752895379474,0.16918242,118320.0,118310.0,4.56805038]
[1752895380370,0.16918242,118320.0,118310.0,4.57650253]
[1752895380535,0.16918242,118320.0,118310.0,4.57650267]
[1752895380735,0.16918242,118320.0,118310.0,4.58495489]
[1752895381045,0.16918242,118320.0,118310.0,4.39213429]
[1752895381479,0.16918242,118320.0,118310.0,4.58495489]
[1752895381898,0.16918242,118320.0,118310.0,4.59340704]
[1752895382894,0.16918242,118320.0,118310.0,4.58495489]
[1752895383424,0.16918242,118320.0,118310.0,4.57650267]
[1752895383641,0.16918242,118320.0,118310.0,4.39900297]
[1752895383908,0.16918242,118320.0,118310.0,4.3905506]
[1752895384643,0.16918242,118320.0,118310.0,4.39900297]
[1752895384820,0.16918242,118320.0,118310.0,4.56805038]
[1752895385049,0.16918242,118320.0,118310.0,4.57650267]
[1752895385259,0.16918242,118320.0,118310.0,4.3905506]
[1752895390212,0.16918242,118320.0,118310.0,4.39900297]
[1752895392421,0.16918242,118320.0,118310.0,4.19773]
[1752895392623,0.16918242,118320.0,118310.0,4.3905506]
[1752895392863,0.43129096,118320.0,118310.0,4.0959]
[1752895393050,0.23847036,118320.0,118310.0,4.16138]
[1752895393265,0.23847036,118320.0,118310.0,4.3542006]
[1752895393570,0.22747342,118320.0,118310.0,4.3542006]
[1752895398899,0.22747342,118320.0,118310.0,4.16138]
[1752895399127,0.22747342,118320.0,118310.0,4.3542006]
[1752895401642,0.22747342,118320.0,118310.0,4.16138]
[1752895402001,0.22747342,118320.0,118310.0,4.3542006]
[1752895403690,0.23699638,118320.0,118310.0,4.3542006]
[1752895404610,0.22747342,118320.0,118310.0,4.3542006]
[1752895404833,0.22747342,118320.0,118310.0,4.16138]
[1752895405051,0.22747342,118320.0,118310.0,4.3542006]
[1752895408038,0.22747342,118320.0,118310.0,4.16138]
[1752895408219,0.22747342,118320.0,118310.0,4.3542006]
[1752895409116,0.28673072,118320.0,118310.0,4.3542006]
[1752895409635,0.26134972,118320.0,118310.0,4.3542006]
[1752895409958,0.26134972,118320.0,118310.0,4.16138]
[1752895411011,0.26134972,118320.0,118310.0,4.16669]
[1752895413310,0.26134972,118320.0,118310.0,4.10121]
[1752895413491,0.45417032,118320.0,118310.0,4.16349]
[1752895413700,0.26134972,118320.0,118310.0,4.16349]
[1752895413954,0.45417032,118320.0,118310.0,4.16349]
[1752895414601,0.20209242,118320.0,118310.0,4.16349]
[1752895414758,0.39491302,118320.0,118310.0,4.16349]
[1752895414919,0.20209242,118320.0,118310.0,4.16349]
[1752895417157,0.20209242,118320.0,118310.0,4.16665]
[1752895417298,0.18709242,118320.0,118310.0,4.16665]
[1752895419596,0.19777854,118320.0,118310.0,4.16665]
[1752895421529,0.18709242,118320.0,118310.0,4.3594706]
[1752895421742,0.17119242,118320.0,118310.0,4.3594706]
[1752895424500,0.16918242,118320.0,118310.0,4.3594706]
[1752895429061,0.16918242,118320.0,118310.0,4.16665]
[1752895429281,0.16918242,118320.0,118310.0,4.3594706]
[1752895429495,0.22803261,118320.0,118310.0,4.3594706]
[1752895429727,0.16918242,118320.0,118310.0,4.3594706]
[1752895431589,0.16918242,118320.0,118310.0,4.3895706]
[1752895431992,0.00860073,118320.0,118310.0,4.76834284]
[1752895432242,0.19453659,118320.0,118310.0,4.7598909]
[1752895432488,0.19453659,118320.0,118310.0,4.77679527]
[1752895433431,0.19453659,118320.0,118310.0,4.78524735]
[1752895433636,0.18608537,118320.0,118310.0,4.78524735]
[1752895434179,0.18608537,118320.0,118310.0,4.77679527]
[1752895434387,0.17763393,118320.0,118310.0,4.77679527]
[1752895434750,0.16918242,118320.0,118310.0,4.76834312]
[1752895435186,0.16918242,118320.0,118310.0,4.77679527]
[1752895435466,0.16918242,118320.0,118310.0,4.78524735]
[1752895435674,0.01705209,118320.0,118310.0,4.79369887]
[1752895435885,0.02550374,118320.0,118310.0,4.79369887]
[1752895436316,0.0255031,118320.0,118310.0,4.79369887]
[1752895437580,0.03395461,118320.0,118310.0,4.79369887]
[1752895438004,0.0255031,118320.0,118310.0,4.79369887]
[1752895438218,0.01705166,118320.0,118310.0,4.79369887]
[1752895438630,0.02550303,118320.0,118310.0,4.79369887]
[1752895439338,0.03395454,118320.0,118310.0,4.79369887]
[1752895440257,0.03395454,118320.0,118310.0,4.40805767]
[1752895440387,0.03395454,118320.0,118310.0,4.79369887]
[1752895441417,0.03395447,118320.0,118310.0,4.79369887]
[1752895441575,0.02550303,118320.0,118310.0,4.79369887]
[1752895442375,0.01705159,118320.0,118310.0,4.79369887]
[1752895442541,0.03395447,118320.0,118310.0,4.40805767]
[1752895442771,0.03395447,118320.0,118310.0,4.79369887]
[1752895443355,0.02550296,118320.0,118310.0,4.79369887]
[1752895443786,0.01705159,118320.0,118310.0,4.79369887]
[1752895443989,0.03395454,118320.0,118310.0,4.79369887]
[1752895444317,0.03395447,118320.0,118310.0,4.79369887]
[1752895444519,0.02550296,118320.0,118310.0,4.79369887]
[1752895444725,0.03395447,118320.0,118310.0,4.79369887]
[1752895445374,0.02550296,118320.0,118310.0,4.79369887]
[1752895445584,0.03395447,118320.0,118310.0,4.79369887]
[1752895447330,0.02550296,118320.0,118310.0,4.79369887]
[1752895447652,0.03395447,118320.0,118310.0,4.79369887]
[1752895448054,0.0339544,118320.0,118310.0,4.79369887]
[1752895448780,0.01705159,118320.0,118310.0,4.79369887]
[1752895448997,0.02550288,118320.0,118310.0,4.79369887]
[1752895449192,0.00014929,118320.0,118310.0,4.87920915]
[1752895449626,0.01705145,118320.0,118310.0,4.87920915]
[1752895449879,0.02550274,118320.0,118310.0,4.68638855]
[1752895450251,0.00014929,118320.0,118310.0,4.87920915]
[1752895452886,0.00860037,118320.0,118310.0,4.87920915]
[1752895454061,0.00014929,118320.0,118310.0,4.87920915]
[1752895454590,0.01705145,118320.0,118310.0,4.87920915]
[1752895455090,0.01705138,118320.0,118310.0,4.87920915]
[1752895455306,0.01705138,118320.0,118310.0,4.49356795]
[1752895455483,0.02550253,118320.0,118310.0,4.49356795]
[1752895455688,0.02550253,118320.0,118310.0,4.87920915]
[1752895455897,0.01705138,118320.0,118310.0,4.87920915]
[1752895456497,0.00014929,118320.0,118310.0,4.87920915]
[1752895456843,0.00860037,118320.0,118310.0,4.87920915]
[1752895457204,0.01705159,118320.0,118310.0,4.87920915]
[1752895457782,0.02550303,118320.0,118310.0,4.87920915]
[1752895457988,0.01705159,118320.0,118310.0,4.87920915]
[1752895459120,0.02550296,118320.0,118310.0,4.87920915]
[1752895459328,0.03395447,118320.0,118310.0,4.66948474]
[1752895459575,0.04240605,118320.0,118310.0,4.68638855]
[1752895460191,0.03395447,118320.0,118310.0,4.68638855]
[1752895460806,0.02550296,118320.0,118310.0,4.87920915]
[1752895461841,0.01705159,118320.0,118310.0,4.87920915]
[1752895462271,0.00860037,118320.0,118310.0,4.87920915]
[1752895462470,0.02550296,118320.0,118310.0,4.87920915]
[1752895462684,0.02550288,118320.0,118310.0,4.87920915]
[1752895462918,0.01705159,118320.0,118310.0,4.87920915]
[1752895463116,0.02550296,118320.0,118310.0,4.87920915]
[1752895463740,0.00860037,118320.0,118310.0,4.87920915]
[1752895463958,0.01705152,118320.0,118310.0,4.87920915]
[1752895464375,0.02550281,118320.0,118310.0,4.87920915]
[1752895466963,0.01705152,118320.0,118310.0,4.87920915]
[1752895467666,0.02550281,118320.0,118310.0,4.87920915]
[1752895468192,0.01705152,118320.0,118310.0,4.87920915]
[1752895468949,0.00014929,118320.0,118310.0,4.87920915]
[1752895469162,0.00014929,118320.0,118310.0,5.41202975]
[1752895469368,0.0002,118330.0,118320.0,0.19438723]
[1752895469604,0.0002,118340.0,118330.0,0.5667708]
[1752895469820,0.0002,118340.0,118330.0,1.10835228]
[1752895470477,0.00886621,118340.0,118330.0,1.10835228]
[1752895470904,0.0002,118340.0,118330.0,1.10835228]
[1752895472064,0.0002,118340.0,118330.0,1.31571373]
[1752895473540,0.0002,118340.0,118330.0,1.31771373]
[1752895473739,0.0002,118340.0,118330.0,1.32171373]
[1752895474381,1e-08,118340.0,118330.0,2.79166752]
[1752895474586,1e-08,118340.0,118330.0,2.21320572]
[1752895474904,1e-08,118340.0,118330.0,2.22357472]
[1752895475995,1e-08,118340.0,118330.0,2.24943849]
[1752895477000,1e-08,118340.0,118330.0,2.05624295]
[1752895481710,1e-08,118340.0,118330.0,1.73863295]
[1752895481927,1e-08,118340.0,118330.0,1.33237296]
[1752895483001,1e-08,118340.0,118330.0,1.16475096]
[1752895483232,1e-08,118340.0,118330.0,1.11397734]
[1752895483944,1e-08,118340.0,118330.0,0.92134421]
[1752895484183,1e-08,118340.0,118330.0,1.11397734]
[1752895487021,1e-08,118340.0,118330.0,0.92134421]
[1752895487460,0.00987112,118350.0,118340.0,0.53435437]
[1752895487671,0.00987112,118350.0,118340.0,0.89542778]
[1752895487860,0.00987112,118350.0,118340.0,0.89842778]
[1752895488707,0.00987112,118350.0,118340.0,0.88292778]
[1752895489126,0.00987112,118350.0,118340.0,0.88592778]
[1752895489341,0.01831999,118350.0,118340.0,0.88592778]
[1752895489522,0.00970211,118350.0,118340.0,0.88592778]
[1752895489954,0.00970211,118350.0,118340.0,0.88792778]
[1752895491676,0.00970211,118350.0,118340.0,0.90412778]
[1752895495732,0.00970211,118350.0,118340.0,0.88792778]
[1752895495941,0.00970211,118350.0,118340.0,0.8090482]
[1752895495942,0.24881914,118350.0,118340.0,0.8090482]
[1752895496231,0.248819,118350.0,118340.0,0.8743682]
[1752895496439,0.24037013,118350.0,118340.0,0.78885792]
[1752895496663,0.24037013,118350.0,118340.0,0.79730793]
[1752895496885,0.07137985,118350.0,118340.0,0.80575772]
[1752895497090,0.07137985,118350.0,118340.0,0.81420744]
[1752895498303,0.06826985,118350.0,118340.0,0.81420744]
[1752895498955,0.05982048,118350.0,118340.0,0.81420744]
[1752895499383,0.06826928,118350.0,118340.0,0.81420744]
[1752895500225,0.05982006,118350.0,118340.0,0.81420744]
[1752895500435,0.06826928,118350.0,118340.0,0.81420744]
[1752895500643,0.07671872,118350.0,118340.0,0.81420744]
[1752895500868,0.08827823,118350.0,118340.0,0.61312467]
[1752895501092,0.23192134,118350.0,118340.0,0.005]
[1752895501306,0.42455447,118350.0,118340.0,0.07028]
[1752895501991,0.23192134,118350.0,118340.0,0.07028]
[1752895502439,0.23192134,118350.0,118340.0,0.06728]
[1752895502652,0.25729534,118350.0,118340.0,0.06728]
[1752895503110,0.25729534,118350.0,118340.0,0.06528]
[1752895503466,0.25729534,118350.0,118340.0,0.06628]
[1752895512677,0.3196065,118350.0,118340.0,0.06628]
[1752895513032,0.25729534,118350.0,118340.0,0.06628]
[1752895518745,0.44992847,118350.0,118340.0,0.06628]
[1752895522473,0.44992847,118350.0,118340.0,0.001]
[1752895523448,0.25729534,118350.0,118340.0,0.001]
[1752895523663,0.44992847,118350.0,118340.0,0.001]
[1752895524047,0.51876763,118350.0,118340.0,0.001]
[1752895525499,0.44992847,118350.0,118340.0,0.001]
[1752895526330,0.47559705,118350.0,118340.0,0.001]
[1752895529884,0.45022305,118350.0,118340.0,0.001]
[1752895534600,0.25758992,118350.0,118340.0,0.001]
[1752895534809,0.45022305,118350.0,118340.0,0.001]
[1752895535027,0.45037902,118350.0,118340.0,0.001]
[1752895536095,0.19771134,118350.0,118340.0,0.1957791]
[1752895536301,0.19771134,118350.0,118340.0,0.1989891]
[1752895537166,0.19559134,118350.0,118340.0,0.2302891]
[1752895537961,0.1871419,118350.0,118340.0,0.2302891]
[1752895538405,0.1871419,118350.0,118340.0,0.4230782]
[1752895538815,0.1871419,118350.0,118340.0,0.2302891]
[1752895539018,0.1871419,118350.0,118340.0,0.39924117]
[1752895539232,0.17869239,118350.0,118340.0,0.0375]
[1752895539463,0.17869239,118350.0,118340.0,0.23023661]
[1752895543165,0.17869239,118350.0,118340.0,0.0375]